bitfinex-derivatives/quotes_BTCF0:USTF0_20220103
["timestamp","ask_amount","ask_price","bid_price","bid_amount"]
[1641231100445,0.059,46651.0,46648.0,0.80815831]
[1641231100946,0.059,46651.0,46650.0,0.80815831]
[1641231101148,0.06,46651.0,46650.0,0.80815831]
[1641231101648,0.059,46651.0,46650.0,0.80815831]
[1641231101846,0.001,46651.0,46649.0,2.12379779]
[1641231102045,0.14033567,46657.0,46649.0,2.12379779]
[1641231102448,0.056,46651.0,46649.0,2.16979779]
[1641231103148,0.08426448,46650.0,46649.0,2.16979779]
[1641231103646,0.08426448,46650.0,46649.0,1.20197531]
[1641231104047,0.08526448,46650.0,46649.0,1.20197531]
[1641231104248,0.08526448,46650.0,46649.0,0.046]
[1641231104447,0.14326448,46650.0,46649.0,0.047]
[1641231105250,0.059,46650.0,46649.0,0.047]
[1641231105849,0.14033567,46657.0,46648.0,1.15597531]
[1641231106051,0.001,46650.0,46648.0,1.15597531]
[1641231106349,0.06827463,46655.0,46648.0,1.15597531]
[1641231106548,0.06827463,46655.0,46648.0,1.21197531]
[1641231106752,0.06827463,46655.0,46651.0,0.80870208]
[1641231106950,0.001,46652.0,46651.0,0.80870208]
[1641231107650,0.001,46652.0,46649.0,0.80870208]
[1641231107851,0.001,46650.0,46649.0,0.80870208]
[1641231108550,0.061,46650.0,46649.0,0.85970208]
[1641231109551,0.061,46650.0,46649.0,0.051]
[1641231109951,0.061,46650.0,46649.0,1.20697531]
[1641231110150,0.06,46650.0,46649.0,1.20697531]
[1641231110351,0.061,46650.0,46649.0,1.20697531]
[1641231110550,0.061,46650.0,46649.0,1.20797531]
[1641231110954,0.061,46650.0,46649.0,0.052]
[1641231111355,0.06,46650.0,46649.0,0.052]
[1641231111552,0.061,46650.0,46649.0,0.052]
[1641231111955,0.09771691,46654.0,46646.0,0.14033567]
[1641231112553,0.15471691,46654.0,46647.0,0.57666233]
[1641231113955,0.09771691,46654.0,46647.0,0.57666233]
[1641231114564,0.15571691,46654.0,46647.0,0.63466233]
[1641231115056,0.058,46654.0,46649.0,0.06]
[1641231115259,0.058,46654.0,46653.0,0.14033567]
[1641231115859,0.0829093,46659.0,46653.0,0.14033567]
[1641231116460,0.1419093,46659.0,46653.0,0.19733567]
[1641231118362,0.0829093,46659.0,46653.0,0.14033567]
[1641231118562,0.1459093,46659.0,46653.0,0.14033567]
[1641231119363,0.18,46658.0,46653.0,0.14033567]
[1641231119963,0.1504193,46659.0,46653.0,0.14033567]
[1641231120564,0.2114193,46659.0,46653.0,0.14033567]
[1641231120765,0.1439093,46659.0,46653.0,0.14033567]
[1641231121365,0.001,46654.0,46653.0,0.14033567]
[1641231121564,0.061,46659.0,46653.0,0.14033567]
[1641231121764,0.001,46654.0,46653.0,0.14033567]
[1641231121964,0.061,46659.0,46653.0,0.14033567]
[1641231122466,0.08968306,46658.0,46653.0,0.14033567]
[1641231123766,0.15184306,46658.0,46653.0,0.14033567]
[1641231123967,0.001,46654.0,46653.0,0.14033567]
[1641231124169,0.181,46654.0,46648.0,0.57666233]
[1641231124369,0.02144504,46649.0,46648.0,0.57666233]
[1641231124570,0.02244504,46649.0,46648.0,0.57666233]
[1641231125170,1.28978071,46649.0,46648.0,0.57666233]
[1641231125369,1.28878071,46649.0,46648.0,0.57666233]
[1641231125570,1.28978071,46649.0,46648.0,0.57666233]
[1641231126471,1.43332884,46649.0,46638.0,0.57666233]
[1641231126671,1.127,46645.0,46638.0,0.57666233]
[1641231127073,0.18,46646.0,46638.0,0.57666233]
[1641231127476,1.18064947,46645.0,46637.0,1.54416532]
[1641231128475,1.24264947,46645.0,46637.0,1.54416532]
[1641231129277,1.24264947,46645.0,46644.0,0.57666233]
[1641231129475,1.24364947,46645.0,46644.0,0.57666233]
[1641231129880,1.18164947,46645.0,46644.0,0.57666233]
[1641231130075,1.18064947,46645.0,46644.0,0.57666233]
[1641231130277,1.18164947,46645.0,46644.0,0.57666233]
[1641231130477,1.24264947,46645.0,46644.0,0.57666233]
[1641231131278,1.24264947,46645.0,46644.0,0.17046233]
[1641231131677,1.24164947,46645.0,46644.0,0.17046233]
[1641231131878,1.18164947,46645.0,46644.0,1.13796532]
[1641231132078,1.18064947,46645.0,46644.0,1.13796532]
[1641231132480,1.24164947,46645.0,46644.0,1.13796532]
[1641231132878,0.11464947,46645.0,46644.0,0.96750299]
[1641231133077,0.11464947,46645.0,46641.0,0.80742124]
[1641231133698,0.05364947,46645.0,46641.0,0.80742124]
[1641231133899,0.05364947,46645.0,46644.0,0.80742124]
[1641231134102,0.05464947,46645.0,46644.0,0.80742124]
[1641231134500,0.11564947,46645.0,46644.0,0.80742124]
[1641231134800,0.11464947,46645.0,46644.0,0.80742124]
[1641231135003,0.11564947,46645.0,46644.0,0.80742124]
[1641231135200,0.11464947,46645.0,46644.0,0.80742124]
[1641231135600,0.11564947,46645.0,46644.0,0.80742124]
[1641231135800,0.11464947,46645.0,46644.0,0.80742124]
[1641231136002,0.05364947,46645.0,46644.0,0.80742124]
[1641231136400,0.05464947,46645.0,46644.0,0.80742124]
[1641231136602,0.11564947,46645.0,46644.0,0.80742124]
[1641231137701,0.05464947,46645.0,46644.0,0.80742124]
[1641231138502,1.24964947,46645.0,46644.0,0.80742124]
[1641231138701,1.25064947,46645.0,46644.0,0.80742124]
[1641231139704,1.18064947,46645.0,46643.0,0.80742124]
[1641231139904,0.001,46644.0,46643.0,0.80742124]
[1641231140304,0.001,46644.0,46642.0,0.80742124]
[1641231140504,0.001,46643.0,46642.0,0.80742124]
[1641231140705,0.07,46644.0,46642.0,0.80742124]
[1641231141305,0.001,46643.0,46642.0,0.80742124]
[1641231142005,1.18064947,46645.0,46642.0,0.80742124]
[1641231142205,0.05364947,46645.0,46642.0,0.98742124]
[1641231142405,0.05364947,46645.0,46642.0,0.80742124]
[1641231142607,0.12164947,46645.0,46642.0,0.83742124]
[1641231143205,0.12164947,46645.0,46642.0,0.03]
[1641231144007,0.001,46643.0,46642.0,0.03]
[1641231144606,0.07,46643.0,46642.0,0.078]
[1641231145208,0.069,46643.0,46642.0,0.078]
[1641231145809,0.069,46643.0,46642.0,0.048]
[1641231146008,0.05364947,46645.0,46640.0,0.12]
[1641231146209,0.14033567,46649.0,46644.0,0.18]
[1641231146410,0.14033567,46655.0,46646.0,0.02143816]
[1641231146909,0.14033567,46655.0,46647.0,0.009794]
[1641231147309,0.08054843,46654.0,46648.0,0.18]
[1641231147910,0.08054843,46654.0,46647.0,0.15012967]
[1641231148109,0.08054843,46654.0,46649.0,0.18]
[1641231148309,0.08054843,46654.0,46647.0,0.15012967]
[1641231148609,0.08054843,46654.0,46649.0,0.18]
[1641231148811,0.08054843,46654.0,46653.0,0.18]
[1641231149012,2.79723631,46668.0,46653.0,0.249234]
[1641231149210,0.1010033,46666.0,46658.0,0.18]
[1641231149412,0.1010033,46666.0,46660.0,0.14033567]
[1641231149811,2.7758,46668.0,46660.0,0.14033567]
[1641231150513,0.20633567,46667.0,46660.0,0.20733567]
[1641231150710,0.20633567,46667.0,46660.0,0.38733567]
[1641231151311,0.07478137,46666.0,46660.0,0.38733567]
[1641231152211,0.07478137,46666.0,46660.0,0.32733567]
[1641231152411,0.20633567,46667.0,46662.0,0.06]
[1641231152412,0.066,46667.0,46662.0,0.06]
[1641231152613,0.067,46666.0,46663.0,0.009794]
[1641231152814,0.067,46666.0,46665.0,0.18]
[1641231153113,0.0313,46678.0,46665.0,0.2014277]
[1641231153311,0.0313,46678.0,46665.0,0.0214277]
[1641231153511,0.0313,46678.0,46673.0,0.18]
[1641231153711,0.0313,46678.0,46672.0,0.14033567]
[1641231153911,0.0313,46678.0,46673.0,0.18]
[1641231154113,2.8071,46678.0,46672.0,0.14033567]
[1641231154316,2.8071,46678.0,46673.0,0.18]
[1641231154516,2.8581,46678.0,46673.0,0.248]
[1641231154715,2.8268,46678.0,46673.0,0.248]
[1641231155915,2.7758,46678.0,46673.0,0.18]
[1641231156318,2.7758,46679.0,46672.0,0.14033567]
[1641231156517,0.055,46678.0,46673.0,0.068]
[1641231156919,0.055,46678.0,46673.0,0.26942576]
[1641231157117,0.055,46678.0,46673.0,0.08942576]
[1641231157718,0.055,46678.0,46675.0,0.18]
[1641231157920,2.7758,46679.0,46675.0,0.18]
[1641231157921,2.7758,46679.0,46676.0,0.009794]
[1641231158518,2.7758,46686.0,46676.0,0.080794]
[1641231159519,2.7758,46686.0,46681.0,0.14033567]
[1641231160119,2.7758,46691.0,46681.0,0.14033567]
[1641231160522,2.7758,46691.0,46681.0,0.21033567]
[1641231160923,2.7758,46691.0,46682.0,0.009794]
[1641231161319,0.08112558,46690.0,46682.0,0.009794]
[1641231162621,0.08112558,46690.0,46682.0,0.079794]
[1641231163223,0.08112558,46690.0,46683.0,0.18]
[1641231163823,0.08112558,46690.0,46686.0,0.18]
[1641231164223,0.08112558,46690.0,46686.0,0.20142016]
[1641231164425,0.08112558,46690.0,46686.0,0.14142016]
[1641231164623,0.08112558,46690.0,46686.0,0.21042016]
[1641231164826,1.8652,46691.0,46689.0,0.12]
[1641231165024,0.12,46710.0,46690.0,0.02141611]
[1641231165224,1.8087,46711.0,46690.0,0.11021611]
[1641231165425,0.02141611,46712.0,46690.0,0.11021611]
[1641231165627,0.14033567,46704.0,46694.0,0.14033567]
[1641231165824,0.1016063,46703.0,46694.0,0.14033567]
[1641231166024,0.1016063,46703.0,46695.0,0.12]
[1641231166427,2.8774063,46703.0,46694.0,0.14033567]
[1641231166625,2.8774063,46703.0,46695.0,0.07]
[1641231166827,2.8774063,46703.0,46697.0,0.18]
[1641231167025,2.7758,46703.0,46697.0,0.189794]
[1641231168632,0.0729267,46702.0,46697.0,0.129794]
[1641231168834,0.0729267,46702.0,46697.0,0.199794]
[1641231169632,2.7758,46703.0,46697.0,0.199794]
[1641231169834,0.14033567,46709.0,46697.0,0.199794]
[1641231169835,2.7758,46708.0,46700.0,0.18]
[1641231170832,2.7758,46708.0,46700.0,0.25]
[1641231171635,2.7758,46708.0,46703.0,0.14033567]
[1641231171835,2.7758,46713.0,46703.0,0.14033567]
[1641231172440,1.0,46744.0,46703.0,0.14033567]
[1641231172441,1.253412,46715.0,46712.0,0.3508]
[1641231172639,1.0,46744.0,46714.0,0.181]
[1641231172937,0.8236,46760.0,46729.0,0.18]
[1641231173146,1.36477184,46777.0,46750.0,0.12]
[1641231173343,1.34477184,46777.0,46769.0,0.12]
[1641231173538,1.58819263,46777.0,46771.0,0.18]
[1641231173738,0.37742079,46777.0,46776.0,0.16171376]
[1641231173939,0.12763567,46793.0,46776.0,0.34171128]
[1641231174139,0.12763567,46793.0,46777.0,0.18]
[1641231174337,0.10797134,46797.0,46783.0,0.12]
[1641231174544,0.18,46801.0,46783.0,0.18013]
[1641231174747,0.18,46801.0,46789.0,0.02137297]
[1641231174948,0.18,46801.0,46783.0,0.18013]
[1641231174949,0.009794,46799.0,46784.0,0.321578]
[1641231175146,0.009794,46799.0,46783.0,0.06013]
[1641231175446,0.0063,46785.0,46777.0,0.07]
[1641231175650,0.14033567,46790.0,46777.0,0.07]
[1641231175845,0.14033567,46790.0,46780.0,0.1737]
[1641231176046,0.001,46778.0,46776.0,0.31403567]
[1641231176245,0.009794,46793.0,46777.0,0.1737]
[1641231176246,0.0063,46785.0,46777.0,0.1737]
[1641231176448,0.0063,46785.0,46776.0,0.31403567]
[1641231176646,0.0063,46788.0,46776.0,0.14033567]
[1641231176848,0.0063,46785.0,46777.0,0.067]
[1641231177047,0.11642967,46795.0,46778.0,0.009794]
[1641231177246,0.001,46779.0,46778.0,0.009794]
[1641231177446,0.05942469,46793.0,46778.0,0.009794]
[1641231177647,0.05942469,46793.0,46774.0,3.00611442]
[1641231177648,0.001,46779.0,46774.0,3.00611442]
[1641231177848,0.08812,46779.0,46768.0,0.02]
[1641231178047,0.001,46775.0,46768.0,0.02]
[1641231178251,0.02138623,46777.0,46768.0,0.02]
[1641231178548,0.05469507,46776.0,46768.0,0.02]
[1641231178947,0.02138719,46775.0,46768.0,0.02]
[1641231179348,0.05469507,46776.0,46768.0,0.02]
[1641231179847,0.14033567,46773.0,46768.0,0.02]
[1641231180047,0.001,46769.0,46768.0,0.02]
[1641231180548,0.09847531,46769.0,46768.0,0.02]
[1641231180754,0.16747531,46769.0,46768.0,0.02]
[1641231180953,0.16847531,46769.0,46768.0,0.02]
[1641231181352,0.16747531,46769.0,46768.0,0.02]
[1641231181550,0.16847531,46769.0,46768.0,0.02]
[1641231182152,1.16757031,46769.0,46768.0,0.02]
[1641231182353,0.009794,46772.0,46768.0,0.02]
[1641231182554,0.1914,46798.0,46771.0,0.18]
[1641231182755,0.9914,46798.0,46771.0,0.18]
[1641231182954,0.1914,46798.0,46773.0,0.18]
[1641231183154,0.4,46805.0,46773.0,0.26082]
[1641231183357,0.8,46798.0,46773.0,0.08082]
[1641231183555,0.02138357,46783.0,46773.0,0.08082]
[1641231183757,0.22258924,46783.0,46773.0,0.08082]
[1641231183955,0.20120567,46783.0,46773.0,0.08082]
[1641231184156,1.068707,46782.0,46772.0,0.14033567]
[1641231184355,0.02138623,46777.0,46772.0,0.14033567]
[1641231184555,0.001,46773.0,46772.0,0.14033567]
[1641231184755,0.03118023,46777.0,46772.0,0.14033567]
[1641231184756,1.068958,46776.0,46772.0,0.14033567]
[1641231184956,0.02138814,46773.0,46772.0,0.14033567]
[1641231185156,0.009794,46777.0,46772.0,0.14033567]
[1641231185758,1.068958,46776.0,46772.0,0.14033567]
[1641231186159,1.127,46775.0,46772.0,0.14033567]
[1641231186558,1.068958,46776.0,46772.0,0.14033567]
[1641231186862,0.071,46775.0,46772.0,0.14033567]
[1641231188059,0.009794,46777.0,46772.0,0.14033567]
[1641231188462,0.14033567,46778.0,46772.0,0.14033567]
[1641231188660,0.14033567,46778.0,46777.0,0.18]
[1641231189862,0.14033567,46783.0,46777.0,0.18]
[1641231190660,0.009794,46786.0,46777.0,0.18]
[1641231190860,0.065,46783.0,46777.0,0.245]
[1641231191460,0.065,46783.0,46782.0,0.18]
[1641231191662,0.066,46783.0,46782.0,0.25262]
[1641231191861,0.001,46783.0,46782.0,0.39295567]
[1641231192060,0.14033567,46797.0,46782.0,0.39295567]
[1641231192262,0.14033567,46797.0,46787.0,0.18]
[1641231192861,0.20333567,46797.0,46787.0,0.249]
[1641231193062,1.068558,46796.0,46787.0,0.069]
[1641231193462,0.20333567,46797.0,46795.0,0.18]
[1641231193665,0.063,46797.0,46795.0,0.25062]
[1641231193864,0.063,46797.0,46795.0,0.07062]
[1641231194065,0.14033567,46802.0,46795.0,0.07062]
[1641231194362,0.009794,46800.0,46795.0,0.07062]
[1641231194562,0.009794,46800.0,46795.0,0.25062]
[1641231194764,0.14033567,46802.0,46795.0,0.31662]
[1641231194765,0.20633567,46802.0,46795.0,0.31662]
[1641231194964,0.20633567,46802.0,46796.0,0.18]
[1641231195866,0.20633567,46802.0,46795.0,0.13662]
[1641231196063,0.14033567,46802.0,46796.0,0.18]
[1641231196863,0.14033567,46802.0,46796.0,0.25]
[1641231197062,0.14033567,46802.0,46796.0,0.07]
[1641231197764,0.03116653,46807.0,46796.0,0.07]
[1641231198166,0.03116653,46807.0,46792.0,0.14033567]
[1641231198770,1.068387,46806.0,46793.0,0.18]
[1641231198966,1.068387,46806.0,46792.0,0.18133567]
[1641231199168,0.021374,46804.0,46793.0,0.18]
[1641231199568,0.07405892,46803.0,46792.0,0.18133567]
[1641231199767,0.07405892,46803.0,46795.0,0.06]
[1641231199967,1.14246892,46803.0,46795.0,0.14317]
[1641231200168,1.06841,46803.0,46795.0,0.08317]
[1641231200568,0.06663627,46802.0,46795.0,0.08317]
[1641231200970,1.06841,46801.0,46795.0,0.12117]
[1641231201169,1.06841,46801.0,46795.0,0.038]
[1641231201377,0.039,46803.0,46795.0,0.038]
[1641231201571,0.039,46803.0,46795.0,0.28584]
[1641231201971,0.039,46803.0,46795.0,0.10584]
[1641231202172,1.068398,46802.0,46795.0,0.10584]
[1641231202373,1.068398,46802.0,46795.0,0.06784]
[1641231202772,1.06841,46803.0,46795.0,0.06784]
[1641231203072,1.06841,46801.0,46795.0,0.037]
[1641231203474,0.039,46802.0,46795.0,0.037]
[1641231203674,0.10120276,46800.0,46795.0,0.037]
[1641231203879,0.009794,46799.0,46792.0,0.14033567]
[1641231204077,0.02137832,46795.0,46792.0,0.14033567]
[1641231204276,0.009794,46794.0,46792.0,0.14033567]
[1641231204477,0.02137987,46793.0,46792.0,0.14033567]
[1641231204678,1.23432881,46793.0,46792.0,0.14033567]
[1641231204878,2.30287581,46793.0,46781.0,0.18]
[1641231205077,2.34287581,46793.0,46781.0,0.18]
[1641231205677,2.34287581,46793.0,46775.0,1.15597531]
[1641231205879,0.4,46778.0,46769.0,0.56150257]
[1641231206079,1.136794,46777.0,46768.0,1e-08]
[1641231206277,0.02139383,46770.0,46759.0,1.37358957]
[1641231206479,0.02139383,46770.0,46759.0,1.26668957]
[1641231206677,1.127,46768.0,46759.0,1.16748957]
[1641231206878,1.20768,46768.0,46752.0,1.48483556]
[1641231207078,1.069209,46767.0,46759.0,0.036]
[1641231207279,0.035,46770.0,46766.0,0.18]
[1641231207680,0.035,46770.0,46764.0,0.02138424]
[1641231207880,0.17533567,46770.0,46760.0,0.14033567]
[1641231208280,0.14033567,46770.0,46760.0,0.14033567]
[1641231208479,0.14033567,46770.0,46765.0,0.18]
[1641231208879,0.14033567,46770.0,46760.0,0.14033567]
[1641231209083,0.18133567,46770.0,46760.0,0.14033567]
[1641231209282,0.18133567,46770.0,46769.0,0.18]
[1641231209481,0.18133567,46770.0,46760.0,0.14033567]
[1641231209688,0.26759434,46770.0,46760.0,0.14033567]
[1641231209890,0.26759434,46770.0,46769.0,0.18]
[1641231210087,0.26759434,46770.0,46769.0,0.25142]
[1641231210287,0.22659434,46770.0,46769.0,0.25142]
[1641231210689,0.22659434,46770.0,46769.0,0.07142]
[1641231210889,0.22659434,46770.0,46769.0,0.25142]
[1641231211188,0.26659434,46770.0,46769.0,0.10642]
[1641231212389,0.22659434,46770.0,46769.0,0.25142]
[1641231212588,0.22659434,46770.0,46769.0,0.07142]
[1641231212989,0.26559434,46770.0,46769.0,0.09442]
[1641231213189,0.26559434,46770.0,46769.0,0.023]
[1641231213589,0.26559434,46770.0,46769.0,0.203]
[1641231213790,0.17933567,46770.0,46769.0,0.203]
[1641231214192,0.039,46770.0,46769.0,0.203]
[1641231214390,0.02138372,46783.0,46769.0,0.38138141]
[1641231214590,0.28067134,46784.0,46778.0,0.18]
[1641231214890,0.28067134,46784.0,46769.0,0.02138141]
[1641231215090,1.068809,46783.0,46778.0,0.18]
[1641231215490,1.068809,46783.0,46778.0,0.06]
[1641231215690,1.068809,46783.0,46776.0,0.18]
[1641231215901,0.14033567,46779.0,46773.0,0.18]
[1641231216106,0.14033567,46779.0,46769.0,0.04]
[1641231216300,0.14033567,46779.0,46768.0,0.32033567]
[1641231217101,0.14033567,46779.0,46774.0,0.18]
[1641231217302,0.14033567,46779.0,46768.0,0.36033567]
[1641231217505,0.14033567,46779.0,46778.0,0.18]
[1641231217800,0.14033567,46779.0,46776.0,0.18]
[1641231218801,0.1006115,46778.0,46776.0,0.18]
[1641231219000,0.1006115,46778.0,46776.0,0.213]
[1641231220202,0.17933567,46779.0,46776.0,0.213]
[1641231220504,0.14033567,46779.0,46776.0,0.18]
[1641231220901,0.08663896,46778.0,46776.0,0.18]
[1641231221102,0.17933567,46779.0,46776.0,0.212]
[1641231221703,0.17933567,46779.0,46776.0,0.032]
[1641231222404,0.14033567,46779.0,46777.0,0.18]
[1641231222905,0.14033567,46779.0,46776.0,0.06199]
[1641231223104,0.17933567,46779.0,46777.0,0.023]
[1641231224804,0.17933567,46779.0,46777.0,0.203]
[1641231225004,0.18033567,46779.0,46777.0,0.206]
[1641231226306,0.14033567,46779.0,46777.0,0.18]
[1641231226604,0.14033567,46779.0,46777.0,0.1674]
[1641231227004,0.18033567,46779.0,46777.0,0.1974]
[1641231228406,0.14033567,46779.0,46777.0,0.1674]
[1641231229008,0.16933567,46779.0,46777.0,0.1874]
[1641231229209,0.16933567,46779.0,46777.0,0.02]
[1641231230012,0.16933567,46779.0,46778.0,0.1674]
[1641231230414,0.14033567,46779.0,46778.0,0.1674]
[1641231230610,0.14033567,46779.0,46771.0,0.1674]
[1641231231009,0.16833567,46779.0,46778.0,0.003]
[1641231231410,1.29533567,46779.0,46778.0,0.003]
[1641231231610,1.30512967,46779.0,46778.0,0.003]
[1641231232010,1.24699667,46779.0,46778.0,0.003]
[1641231232411,1.21899667,46779.0,46768.0,0.14033567]
[1641231232614,1.21899667,46779.0,46775.0,0.1674]
[1641231233614,1.21899667,46779.0,46768.0,0.34933567]
[1641231234515,1.21899667,46779.0,46768.0,0.32033567]
[1641231234715,1.21899667,46779.0,46778.0,0.1674]
[1641231234916,0.28067134,46784.0,46778.0,0.23335]
[1641231235121,0.28067134,46784.0,46783.0,0.1674]
[1641231235122,0.14033567,46784.0,46783.0,0.1674]
[1641231235716,0.14033567,46784.0,46783.0,0.1684]
[1641231235916,1.68871957,46789.0,46783.0,0.1684]
[1641231236218,1.82905524,46791.0,46788.0,0.1674]
[1641231236417,1.82905524,46791.0,46788.0,0.0765]
[1641231236618,1.82905524,46791.0,46788.0,0.2439]
[1641231237017,1.85705524,46791.0,46788.0,0.2689]
[1641231237421,1.127,46790.0,46769.0,0.78855122]
[1641231237621,0.0126,46776.0,46770.0,0.56330369]
[1641231237820,0.03399001,46772.0,46769.0,0.78115122]
[1641231238018,0.14033567,46770.0,46769.0,0.78115122]
[1641231238219,1.30132879,46770.0,46769.0,0.78115122]
[1641231238420,0.14033567,46770.0,46767.0,1.12660737]
[1641231238620,1.20917767,46770.0,46767.0,1.12660737]
[1641231238822,1.20917767,46770.0,46766.0,0.1674]
[1641231238823,0.14033567,46770.0,46766.0,0.1674]
[1641231239022,0.14033567,46770.0,46767.0,0.023]
[1641231239023,0.16833567,46770.0,46767.0,0.023]
[1641231239420,1.29533567,46770.0,46767.0,0.023]
[1641231239821,0.16833567,46770.0,46769.0,0.1674]
[1641231240021,0.16833567,46770.0,46767.0,0.023]
[1641231240422,0.14033567,46770.0,46763.0,0.1674]
[1641231240620,0.14033567,46770.0,46767.0,0.1674]
[1641231240822,1.71010308,46783.0,46769.0,0.18]
[1641231241023,1.68871957,46779.0,46769.0,0.18]
[1641231241823,1.68871957,46779.0,46778.0,0.1674]
[1641231242025,0.14033567,46782.0,46778.0,0.1674]
[1641231243124,0.16833567,46782.0,46778.0,0.1674]
[1641231243324,0.17812967,46782.0,46772.0,0.14033567]
[1641231243527,1.127,46780.0,46772.0,0.14033567]
[1641231243924,0.0126,46774.0,46766.0,0.1674]
[1641231244324,0.009794,46775.0,46766.0,0.1674]
[1641231244525,0.02138943,46770.0,46766.0,0.1674]
[1641231244723,1.127,46776.0,46763.0,0.14033567]
[1641231244724,1.127,46776.0,46764.0,0.1674]
[1641231244924,0.102944,46770.0,46764.0,0.1674]
[1641231245126,0.07731134,46769.0,46764.0,0.1674]
[1641231245625,0.09870138,46769.0,46764.0,0.1674]
[1641231246128,1.127,46767.0,46762.0,0.1674]
[1641231246327,1.127,46767.0,46758.0,0.14033567]
[1641231247026,1.155,46767.0,46758.0,0.16133567]
[1641231247834,0.02139635,46759.0,46758.0,0.021]
[1641231248031,1.127,46758.0,46751.0,0.56614765]
[1641231248233,0.02139738,46753.0,46751.0,0.56614765]
[1641231248531,0.02139738,46753.0,46752.0,0.1684]
[1641231248730,0.21913567,46759.0,46751.0,0.56614765]
[1641231248931,0.14033567,46759.0,46756.0,0.1674]
[1641231250732,1.26733567,46759.0,46756.0,0.1674]
[1641231251132,1.29633567,46759.0,46756.0,0.1674]
[1641231251533,0.16933567,46759.0,46756.0,0.1674]
[1641231252133,1.29633567,46759.0,46756.0,0.1674]
[1641231252432,1.26733567,46759.0,46749.0,0.30773567]
[1641231252634,1.35607567,46759.0,46749.0,0.30773567]
[1641231252935,1.127,46757.0,46749.0,0.30773567]
[1641231253131,1.127,46757.0,46749.0,0.14033567]
[1641231253533,1.127,46757.0,46753.0,0.1674]
[1641231253832,0.0126,46756.0,46749.0,0.14033567]
[1641231254034,1.127,46757.0,46749.0,0.14033567]
[1641231254234,1.127,46754.0,46749.0,0.14033567]
[1641231254533,1.127,46754.0,46744.0,0.56614765]
[1641231254534,0.009794,46753.0,46744.0,0.56614765]
[1641231254732,0.0126,46750.0,46744.0,0.56614765]
[1641231254934,1.127,46752.0,46744.0,0.56614765]
[1641231255234,0.02140095,46745.0,46744.0,0.56614765]
[1641231255536,0.09221,46745.0,46744.0,0.74614765]
[1641231255933,0.09221,46745.0,46744.0,0.20239315]
[1641231256133,0.09221,46745.0,46744.0,0.16272882]
[1641231256332,0.029,46753.0,46744.0,0.34272882]
[1641231256534,0.14033567,46759.0,46752.0,0.1674]
[1641231256732,1.26733567,46759.0,46758.0,0.1674]
[1641231257133,2.36465967,46759.0,46758.0,0.1674]
[1641231257332,2.46608736,46759.0,46758.0,0.1674]
[1641231260137,2.46608736,46759.0,46745.0,0.56614765]
[1641231260336,2.46608736,46759.0,46758.0,0.1674]
[1641231260534,2.43808736,46759.0,46758.0,0.1674]
[1641231261236,2.46408736,46759.0,46758.0,0.0474]
[1641231261733,2.46408736,46759.0,46758.0,0.1674]
[1641231262534,2.43808736,46759.0,46758.0,0.1674]
[1641231263235,2.46408736,46759.0,46758.0,0.1674]
[1641231263637,1.33708736,46759.0,46758.0,0.1674]
[1641231264235,2.46408736,46759.0,46758.0,0.1674]
[1641231264435,1.33708736,46759.0,46758.0,0.1674]
[1641231264635,1.31108736,46759.0,46758.0,0.1674]
[1641231264837,2.43808736,46759.0,46758.0,0.1674]
[1641231265238,2.46408736,46759.0,46758.0,0.1674]
[1641231266343,1.33708736,46759.0,46758.0,0.1674]
[1641231266542,1.31108736,46759.0,46758.0,0.1674]
[1641231267244,1.33708736,46759.0,46758.0,0.1674]
[1641231268144,2.46408736,46759.0,46758.0,0.1674]
[1641231268545,2.43808736,46759.0,46758.0,0.1674]
[1641231269143,2.46408736,46759.0,46758.0,0.1674]
[1641231270246,2.46408736,46759.0,46727.0,2.75994237]
[1641231270247,2.97668736,46759.0,46727.0,2.75994237]
[1641231270449,0.0126,46745.0,46727.0,2.75994237]
[1641231270647,0.07328,46745.0,46734.0,0.1674]
[1641231270847,0.07328,46745.0,46727.0,2.93994237]
[1641231271046,0.06068,46745.0,46737.0,0.1674]
[1641231271249,1.127,46743.0,46727.0,2.93994237]
[1641231271448,1.17339845,46744.0,46740.0,0.1674]
[1641231271748,0.02140274,46741.0,46740.0,0.1674]
[1641231271949,0.0126,46741.0,46733.0,0.1674]
[1641231272355,1.127,46739.0,46733.0,0.1674]
[1641231272555,1.127,46739.0,46728.0,1.8319]
[1641231272757,1.127,46739.0,46729.0,0.1674]
[1641231273156,1.154,46739.0,46729.0,0.1674]
[1641231273560,1.154,46739.0,46727.0,0.14033567]
[1641231273761,0.0126,46736.0,46724.0,0.1674]
[1641231273960,0.02140895,46728.0,46722.0,0.14033567]
[1641231274163,0.0126,46727.0,46722.0,0.14033567]
[1641231274359,0.07143,46728.0,46723.0,0.1674]
[1641231274860,0.07143,46728.0,46727.0,0.1674]
[1641231275058,0.14033567,46731.0,46727.0,0.1674]
[1641231275257,0.14033567,46731.0,46725.0,0.12]
[1641231275258,0.025,46728.0,46725.0,0.12]
[1641231275458,0.025,46728.0,46727.0,0.1684]
[1641231275859,0.14033567,46731.0,46727.0,0.2284]
[1641231276060,0.14033567,46731.0,46730.0,0.1674]
[1641231277160,0.14733567,46731.0,46730.0,0.1944]
[1641231278560,0.14733567,46731.0,46730.0,0.1674]
[1641231278561,0.14033567,46731.0,46730.0,0.1674]
[1641231279161,0.14733567,46731.0,46730.0,0.1944]
[1641231279361,0.14033567,46742.0,46730.0,0.28185]
[1641231279561,0.14033567,46742.0,46736.0,0.18]
[1641231279762,0.16173578,46747.0,46741.0,0.1674]
[1641231279962,0.16173578,46747.0,46746.0,0.1674]
[1641231280964,0.14033567,46747.0,46746.0,0.1674]
[1641231281165,0.16633567,46747.0,46746.0,0.1834]
[1641231282669,0.02139879,46750.0,46746.0,0.1674]
[1641231282968,0.02139879,46750.0,46749.0,0.1674]
[1641231283168,0.021,46750.0,46749.0,0.1674]
[1641231284371,0.14033567,46753.0,46749.0,0.1674]